[Event "Early-Titled-Tuesday-Blitz-May-14-2024"]
[Site "Chess.com"]
[Date "2024.05.14"]
[Round "9"]
[White "MikeWizard"]
[Black "Mandaloriana19"]
[Result "0-1"]
[WhiteElo "2005"]
[BlackElo "2423"]
[TimeControl "180+1"]
[EndTime "9:47:23 PDT"]
[Termination "Mandaloriana19 won by resignation"]

1. d4 {[%clk 0:03:00.9]} 1... d5 {[%clk 0:02:57.9]} 2. c4 {[%clk 0:03:00.9]}
2... a6 {[%clk 0:02:52.1]} 3. cxd5 {[%clk 0:02:58.9]} 3... Qxd5 {[%clk 0:02:53]}
4. Nc3 {[%clk 0:02:58.8]} 4... Qd8 {[%clk 0:02:52.4]} 5. e4 {[%clk 0:02:58.2]}
5... e6 {[%clk 0:02:52.5]} 6. Nf3 {[%clk 0:02:57]} 6... Nf6 {[%clk 0:02:52.1]}
7. Bg5 {[%clk 0:02:52.2]} 7... h6 {[%clk 0:02:51.3]} 8. Bh4 {[%clk 0:02:50.5]}
8... g5 {[%clk 0:02:50.6]} 9. Bg3 {[%clk 0:02:50.4]} 9... Bg7 {[%clk 0:02:51]}
10. Ne5 {[%clk 0:02:42.8]} 10... Nbd7 {[%clk 0:02:48.8]} 11. Be2 {[%clk
0:02:34.4]} 11... Nb6 {[%clk 0:02:44.3]} 12. h4 {[%clk 0:02:28.9]} 12... g4
{[%clk 0:02:20.8]} 13. Bxg4 {[%clk 0:02:11.3]} 13... Nxg4 {[%clk 0:02:14]} 14.
Qxg4 {[%clk 0:02:10.7]} 14... Bf6 {[%clk 0:02:12.6]} 15. Rd1 {[%clk 0:02:06.9]}
15... Qe7 {[%clk 0:02:07.6]} 16. Qh5 {[%clk 0:01:57.1]} 16... Rh7 {[%clk
0:01:26.7]} 17. O-O {[%clk 0:01:53.3]} 17... Qb4 {[%clk 0:01:14.8]} 18. Qe2
{[%clk 0:01:46.9]} 18... h5 {[%clk 0:01:00.2]} 19. Nf3 {[%clk 0:01:41.2]} 19...
Qe7 {[%clk 0:00:57.4]} 20. e5 {[%clk 0:01:36.2]} 20... Bg7 {[%clk 0:00:54.1]}
21. Ng5 {[%clk 0:01:35.6]} 21... Rh8 {[%clk 0:00:53.4]} 22. Nge4 {[%clk
0:01:29.7]} 22... Bd7 {[%clk 0:00:52.4]} 23. Qf3 {[%clk 0:01:28.3]} 23... Bc6
{[%clk 0:00:51.2]} 24. Qf4 {[%clk 0:01:20.1]} 24... O-O-O {[%clk 0:00:46.7]} 25.
b3 {[%clk 0:01:17.2]} 25... Rhg8 {[%clk 0:00:43.3]} 26. a4 {[%clk 0:01:13.9]}
26... Nd5 {[%clk 0:00:28.7]} 27. Nxd5 {[%clk 0:01:12.5]} 27... Bxd5 {[%clk
0:00:29]} 28. b4 {[%clk 0:01:08.2]} 28... Qxb4 {[%clk 0:00:25.6]} 29. Qxf7
{[%clk 0:01:04.7]} 29... Bxe4 {[%clk 0:00:18.2]} 30. Qxh5 {[%clk 0:01:03.5]}
30... Bf8 {[%clk 0:00:16.1]} 31. Rfe1 {[%clk 0:00:57.1]} 31... Bd5 {[%clk
0:00:15.9]} 32. Qf7 {[%clk 0:00:55.9]} 32... Qe7 {[%clk 0:00:14.4]} 33. Qxe7
{[%clk 0:00:53.3]} 33... Bxe7 {[%clk 0:00:14.7]} 34. Re3 {[%clk 0:00:51.1]}
34... Rdf8 {[%clk 0:00:14.7]} 35. Rc3 {[%clk 0:00:48]} 35... c6 {[%clk
0:00:14.6]} 36. Rb1 {[%clk 0:00:45.4]} 36... Rg4 {[%clk 0:00:14.6]} 37. Rd3
{[%clk 0:00:43.7]} 37... Rfg8 {[%clk 0:00:13.4]} 38. Rd2 {[%clk 0:00:37.7]}
38... Bxh4 {[%clk 0:00:13.2]} 39. Bxh4 {[%clk 0:00:36.9]} 39... Rxh4 {[%clk
0:00:13.8]} 40. Rdb2 {[%clk 0:00:36.1]} 40... Rxg2+ {[%clk 0:00:13.2]} 41. Kf1
{[%clk 0:00:35.6]} 41... Rh1+ {[%clk 0:00:13.3]} 42. Ke2 {[%clk 0:00:35]} 42...
Rxb1 {[%clk 0:00:13.5]} 43. Rxb1 {[%clk 0:00:35.1]} 43... Rg4 {[%clk 0:00:13.4]}
44. Ke3 {[%clk 0:00:33.8]} 44... Rh4 {[%clk 0:00:13.6]} 45. Rg1 {[%clk
0:00:32.9]} 45... Kc7 {[%clk 0:00:13.7]} 46. Rg7+ {[%clk 0:00:32.3]} 46... Kb6
{[%clk 0:00:14]} 47. Re7 {[%clk 0:00:30]} 47... a5 {[%clk 0:00:14]} 48. Rd7
{[%clk 0:00:28.2]} 48... Rh3+ {[%clk 0:00:14]} 49. Kd2 {[%clk 0:00:26.6]} 49...
Ra3 {[%clk 0:00:14.2]} 50. Re7 {[%clk 0:00:25.2]} 50... Rxa4 {[%clk 0:00:14.4]}
51. Ke3 {[%clk 0:00:24.7]} 51... Ra3+ {[%clk 0:00:15]} 52. Kd2 {[%clk
0:00:24.8]} 52... a4 {[%clk 0:00:15.5]} 53. f4 {[%clk 0:00:24.2]} 53... Rf3
{[%clk 0:00:15.6]} 54. Rf7 {[%clk 0:00:22.8]} 54... a3 {[%clk 0:00:16.2]} 55.
Kc2 {[%clk 0:00:21.9]} 55... a2 {[%clk 0:00:16.4]} 56. Kb2 {[%clk 0:00:21.9]}
56... Rf2+ {[%clk 0:00:16.7]} 57. Ka1 {[%clk 0:00:21.3]} 57... Rf1+ {[%clk
0:00:17.2]} 0-1

[Event "Early-Titled-Tuesday-Blitz-May-14-2024"]
[Site "Chess.com"]
[Date "2024.05.14"]
[Round "9"]
[White "sergiochess83"]
[Black "Hope_6"]
[Result "0-1"]
[WhiteElo "2854"]
[BlackElo "2668"]
[TimeControl "180+1"]
[EndTime "9:47:24 PDT"]
[Termination "Hope_6 won by resignation"]

1. d4 {[%clk 0:03:00.9]} 1... f5 {[%clk 0:02:57.5]} 2. Bg5 {[%clk 0:02:58]} 2...
g6 {[%clk 0:02:54.8]} 3. e3 {[%clk 0:02:56.4]} 3... Bg7 {[%clk 0:02:54]} 4. Bc4
{[%clk 0:02:55.1]} 4... Nf6 {[%clk 0:02:51.5]} 5. Nc3 {[%clk 0:02:54.5]} 5... c6
{[%clk 0:02:45.9]} 6. Bb3 {[%clk 0:02:50.1]} 6... d5 {[%clk 0:02:41.7]} 7. Nf3
{[%clk 0:02:49]} 7... Be6 {[%clk 0:02:38.4]} 8. Ne2 {[%clk 0:02:48.8]} 8... Nbd7
{[%clk 0:02:34.6]} 9. Nf4 {[%clk 0:02:44.9]} 9... Bf7 {[%clk 0:02:32.5]} 10. h4
{[%clk 0:02:44.3]} 10... h6 {[%clk 0:02:26.9]} 11. Bxf6 {[%clk 0:02:44.1]} 11...
Bxf6 {[%clk 0:02:25.2]} 12. Qe2 {[%clk 0:02:37.7]} 12... e5 {[%clk 0:02:20.1]}
13. dxe5 {[%clk 0:02:35.4]} 13... Nxe5 {[%clk 0:02:19.2]} 14. O-O-O {[%clk
0:02:34]} 14... Qe7 {[%clk 0:02:15.7]} 15. Nd4 {[%clk 0:02:27.4]} 15... O-O-O
{[%clk 0:02:09.8]} 16. h5 {[%clk 0:02:26.9]} 16... g5 {[%clk 0:01:59.4]} 17. Ng6
{[%clk 0:02:22.6]} 17... Nxg6 {[%clk 0:01:53.1]} 18. hxg6 {[%clk 0:02:12.2]}
18... Bxg6 {[%clk 0:01:51.4]} 19. c3 {[%clk 0:02:09.8]} 19... Kb8 {[%clk
0:01:42.8]} 20. Bc2 {[%clk 0:02:09.4]} 20... Bxd4 {[%clk 0:01:16.2]} 21. Rxd4
{[%clk 0:02:08.6]} 21... Qe6 {[%clk 0:01:11.8]} 22. Qf3 {[%clk 0:02:03.9]} 22...
Rdf8 {[%clk 0:01:10.1]} 23. Rhd1 {[%clk 0:01:58.7]} 23... a6 {[%clk 0:00:58]}
24. c4 {[%clk 0:01:48.2]} 24... dxc4 {[%clk 0:00:53.2]} 25. Rd6 {[%clk
0:01:48.4]} 25... Qe8 {[%clk 0:00:53.1]} 26. g4 {[%clk 0:01:20.8]} 26... Ka7
{[%clk 0:00:36.4]} 27. gxf5 {[%clk 0:01:18.3]} 27... Bh5 {[%clk 0:00:34.5]} 28.
Qg3 {[%clk 0:01:10.1]} 28... Bxd1 {[%clk 0:00:33.7]} 29. Rxd1 {[%clk 0:01:10.3]}
29... Qe7 {[%clk 0:00:31.5]} 30. e4 {[%clk 0:01:10.2]} 30... Re8 {[%clk
0:00:28.7]} 31. Rd4 {[%clk 0:01:00.7]} 31... Qe5 {[%clk 0:00:27.2]} 32. Qe3
{[%clk 0:00:50.9]} 32... Qc5 {[%clk 0:00:26.6]} 33. Qd2 {[%clk 0:00:41.1]} 33...
h5 {[%clk 0:00:26.4]} 34. Rd7 {[%clk 0:00:34.7]} 34... h4 {[%clk 0:00:26.4]} 35.
f6 {[%clk 0:00:27.2]} 35... h3 {[%clk 0:00:26.2]} 36. f7 {[%clk 0:00:24.7]}
36... Ref8 {[%clk 0:00:25]} 37. Bd1 {[%clk 0:00:03.3]} 37... h2 {[%clk 0:00:24]}
38. Bf3 {[%clk 0:00:04]} 38... g4 {[%clk 0:00:22.5]} 39. Bh1 {[%clk 0:00:03.6]}
39... g3 {[%clk 0:00:21.5]} 40. fxg3 {[%clk 0:00:02.9]} 40... Qg1+ {[%clk
0:00:21]} 41. Qd1 {[%clk 0:00:03.4]} 41... Qxg3 {[%clk 0:00:16.5]} 42. Rxb7+
{[%clk 0:00:02.4]} 42... Kxb7 {[%clk 0:00:15.2]} 43. Qd7+ {[%clk 0:00:03]} 43...
Qc7 {[%clk 0:00:15.7]} 0-1

[Event "Early-Titled-Tuesday-Blitz-May-14-2024"]
[Site "Chess.com"]
[Date "2024.05.14"]
[Round "9"]
[White "DenLaz"]
[Black "snowlord"]
[Result "0-1"]
[WhiteElo "3103"]
[BlackElo "2954"]
[TimeControl "180+1"]
[EndTime "9:47:26 PDT"]
[Termination "snowlord won by resignation"]

1. d4 {[%clk 0:03:00.9]} 1... Nf6 {[%clk 0:02:59.4]} 2. c4 {[%clk 0:03:01.5]}
2... e6 {[%clk 0:02:59.1]} 3. Nf3 {[%clk 0:03:02.1]} 3... d5 {[%clk 0:02:59.2]}
4. g3 {[%clk 0:03:02.6]} 4... Bb4+ {[%clk 0:02:59.1]} 5. Bd2 {[%clk 0:03:02.7]}
5... a5 {[%clk 0:02:59.7]} 6. Bg2 {[%clk 0:03:01.5]} 6... dxc4 {[%clk
0:02:59.7]} 7. a3 {[%clk 0:03:00.6]} 7... Bxd2+ {[%clk 0:02:52.7]} 8. Nbxd2
{[%clk 0:03:01.5]} 8... b5 {[%clk 0:02:52.5]} 9. b3 {[%clk 0:03:01.9]} 9... cxb3
{[%clk 0:02:47.2]} 10. Qxb3 {[%clk 0:03:02.8]} 10... c6 {[%clk 0:02:43.1]} 11.
O-O {[%clk 0:03:03.1]} 11... O-O {[%clk 0:02:33.8]} 12. Rfc1 {[%clk 0:03:02.7]}
12... Ra6 {[%clk 0:02:26.9]} 13. Qb2 {[%clk 0:02:59.3]} 13... Nbd7 {[%clk
0:02:25.1]} 14. Ne1 {[%clk 0:02:57.4]} 14... Bb7 {[%clk 0:01:45.8]} 15. Nd3
{[%clk 0:02:56.7]} 15... Rb6 {[%clk 0:01:35]} 16. Nb3 {[%clk 0:02:49.5]} 16...
Qa8 {[%clk 0:01:34.9]} 17. Nbc5 {[%clk 0:02:45.4]} 17... Rd8 {[%clk 0:01:31.4]}
18. Rc2 {[%clk 0:02:39.7]} 18... Nxc5 {[%clk 0:01:30.2]} 19. Nxc5 {[%clk
0:02:39.2]} 19... Bc8 {[%clk 0:01:22.7]} 20. Rac1 {[%clk 0:02:36.9]} 20... Nd5
{[%clk 0:01:21.9]} 21. Nd3 {[%clk 0:02:32.3]} 21... Bd7 {[%clk 0:01:19.9]} 22.
e4 {[%clk 0:02:10.4]} 22... Nf6 {[%clk 0:01:19.8]} 23. Nc5 {[%clk 0:01:45.6]}
23... Be8 {[%clk 0:01:20]} 24. e5 {[%clk 0:01:45]} 24... Nd5 {[%clk 0:01:18]}
25. Ne4 {[%clk 0:01:45.3]} 25... Qb8 {[%clk 0:01:09.4]} 26. h4 {[%clk
0:01:38.9]} 26... h6 {[%clk 0:01:07.5]} 27. Rc5 {[%clk 0:01:34.3]} 27... Ne7
{[%clk 0:00:42.8]} 28. Bh3 {[%clk 0:01:19.3]} 28... Rd5 {[%clk 0:00:40.7]} 29.
h5 {[%clk 0:01:03.5]} 29... b4 {[%clk 0:00:31]} 30. a4 {[%clk 0:00:29.2]} 30...
b3 {[%clk 0:00:31.5]} 31. Bf1 {[%clk 0:00:29.2]} 31... Rb4 {[%clk 0:00:31.3]}
32. Bc4 {[%clk 0:00:28.1]} 32... Rxc5 {[%clk 0:00:26.1]} 33. Nxc5 {[%clk
0:00:27.9]} 33... Nf5 {[%clk 0:00:16.9]} 34. Nxb3 {[%clk 0:00:05.9]} 34... c5
{[%clk 0:00:16.1]} 35. dxc5 {[%clk 0:00:05.5]} 35... Bxa4 {[%clk 0:00:16.4]} 36.
Rc3 {[%clk 0:00:03]} 36... Nd4 {[%clk 0:00:15.5]} 37. c6 {[%clk 0:00:02.2]}
37... Bxc6 {[%clk 0:00:14.8]} 38. Qa2 {[%clk 0:00:01.8]} 38... Nf3+ {[%clk
0:00:14.1]} 39. Kf1 {[%clk 0:00:01.5]} 39... a4 {[%clk 0:00:14.8]} 40. Nc1
{[%clk 0:00:01.4]} 40... Rb2 {[%clk 0:00:14.9]} 41. Qa3 {[%clk 0:00:01.9]} 41...
Nd2+ {[%clk 0:00:15.1]} 42. Ke1 {[%clk 0:00:02]} 42... Qxe5+ {[%clk 0:00:13.8]}
43. Kd1 {[%clk 0:00:02.5]} 43... Nxc4 {[%clk 0:00:13.4]} 44. Rxc4 {[%clk
0:00:02.6]} 44... Qd5+ {[%clk 0:00:13.5]} 45. Ke1 {[%clk 0:00:02.7]} 45... Qd2+
{[%clk 0:00:10.1]} 0-1

[Event "Early-Titled-Tuesday-Blitz-May-14-2024"]
[Site "Chess.com"]
[Date "2024.05.14"]
[Round "9"]
[White "AryanTari"]
[Black "kingofthenil"]
[Result "1-0"]
[WhiteElo "3047"]
[BlackElo "2849"]
[TimeControl "180+1"]
[EndTime "9:47:29 PDT"]
[Termination "AryanTari won by resignation"]

1. e4 {[%clk 0:03:00.9]} 1... Nc6 {[%clk 0:02:59.9]} 2. d4 {[%clk 0:02:56.1]}
2... d5 {[%clk 0:03:00.2]} 3. e5 {[%clk 0:02:53.7]} 3... Bf5 {[%clk 0:03:00.2]}
4. Nf3 {[%clk 0:02:52.1]} 4... e6 {[%clk 0:03:00.4]} 5. Bb5 {[%clk 0:02:46.8]}
5... Ne7 {[%clk 0:03:00.4]} 6. O-O {[%clk 0:02:46.1]} 6... a6 {[%clk 0:03:00.7]}
7. Ba4 {[%clk 0:02:40.5]} 7... f6 {[%clk 0:02:52.6]} 8. Re1 {[%clk 0:02:32.1]}
8... b5 {[%clk 0:02:51.8]} 9. Bb3 {[%clk 0:02:23.7]} 9... fxe5 {[%clk
0:02:51.6]} 10. dxe5 {[%clk 0:02:21.8]} 10... Ng6 {[%clk 0:02:49.6]} 11. a4
{[%clk 0:02:07]} 11... Be7 {[%clk 0:02:35.5]} 12. axb5 {[%clk 0:02:00]} 12...
axb5 {[%clk 0:02:36.4]} 13. Rxa8 {[%clk 0:02:00.4]} 13... Qxa8 {[%clk
0:02:37.1]} 14. Nc3 {[%clk 0:02:01.1]} 14... Qa5 {[%clk 0:01:33.2]} 15. Nxd5
{[%clk 0:01:37.5]} 15... exd5 {[%clk 0:01:28.5]} 16. Qxd5 {[%clk 0:01:38.4]}
16... Nd8 {[%clk 0:01:06.3]} 17. e6 {[%clk 0:01:32.6]} 17... Qb6 {[%clk
0:00:55]} 18. Qxf5 {[%clk 0:01:17.4]} 18... Rf8 {[%clk 0:00:53.1]} 19. Qd5
{[%clk 0:01:06.2]} 19... Qc6 {[%clk 0:00:52.4]} 20. Nd4 {[%clk 0:00:55.2]} 20...
Qxd5 {[%clk 0:00:47.9]} 21. Bxd5 {[%clk 0:00:56.1]} 21... Nf4 {[%clk 0:00:45.3]}
22. Bf3 {[%clk 0:00:48.5]} 22... c5 {[%clk 0:00:31.6]} 23. Nxb5 {[%clk
0:00:45.5]} 23... Nfxe6 {[%clk 0:00:27.9]} 24. Be3 {[%clk 0:00:37.8]} 24... Kd7
{[%clk 0:00:22.7]} 25. Rd1+ {[%clk 0:00:37.9]} 25... Kc8 {[%clk 0:00:20.6]} 26.
Nd6+ {[%clk 0:00:32.5]} 26... Bxd6 {[%clk 0:00:19.5]} 27. Rxd6 {[%clk
0:00:33.4]} 27... Kc7 {[%clk 0:00:20.3]} 28. Rd1 {[%clk 0:00:33.2]} 28... Nc6
{[%clk 0:00:19.8]} 29. c3 {[%clk 0:00:33.2]} 29... Ne5 {[%clk 0:00:19.2]} 30.
Bd5 {[%clk 0:00:32.5]} 30... Nf4 {[%clk 0:00:18.5]} 31. Bxc5 {[%clk 0:00:25.2]}
31... Rd8 {[%clk 0:00:17.8]} 32. Bb3 {[%clk 0:00:21.3]} 32... Ned3 {[%clk
0:00:07.8]} 33. Be3 {[%clk 0:00:17.4]} 33... Rb8 {[%clk 0:00:06.8]} 34. Bc4
{[%clk 0:00:13.8]} 34... Rxb2 {[%clk 0:00:07.4]} 35. h4 {[%clk 0:00:09.1]} 35...
Ne2+ {[%clk 0:00:05.4]} 36. Kh2 {[%clk 0:00:09.2]} 36... Nxf2 {[%clk 0:00:04.2]}
37. Bxf2 {[%clk 0:00:09.1]} 37... Nxc3 {[%clk 0:00:04.4]} 38. Bg3+ {[%clk
0:00:09.1]} 38... Kc6 {[%clk 0:00:04.9]} 39. Rc1 {[%clk 0:00:09]} 39... Ne4
{[%clk 0:00:02]} 40. Bd3+ {[%clk 0:00:09.6]} 40... Kd5 {[%clk 0:00:02.3]} 41.
Bxe4+ {[%clk 0:00:09.9]} 41... Kxe4 {[%clk 0:00:03.2]} 42. Rc7 {[%clk
0:00:10.3]} 42... g5 {[%clk 0:00:01.4]} 43. hxg5 {[%clk 0:00:08.8]} 43... Kf5
{[%clk 0:00:02.3]} 44. Rxh7 {[%clk 0:00:08.5]} 44... Kxg5 {[%clk 0:00:03.2]} 45.
Rc7 {[%clk 0:00:08.9]} 45... Kg4 {[%clk 0:00:04.1]} 46. Rc4+ {[%clk 0:00:09.2]}
46... Kg5 {[%clk 0:00:04.1]} 47. Kh3 {[%clk 0:00:09.8]} 47... Kh5 {[%clk
0:00:04.6]} 48. Rc5+ {[%clk 0:00:10]} 48... Kg6 {[%clk 0:00:04.5]} 49. Bf4
{[%clk 0:00:10.7]} 49... Rc2 {[%clk 0:00:04.8]} 50. Rxc2 {[%clk 0:00:10.3]}
50... Kf5 {[%clk 0:00:05]} 51. g3 {[%clk 0:00:09.7]} 51... Ke4 {[%clk
0:00:05.9]} 52. Kg4 {[%clk 0:00:09.9]} 1-0

[Event "Early-Titled-Tuesday-Blitz-May-14-2024"]
[Site "Chess.com"]
[Date "2024.05.14"]
[Round "9"]
[White "zajka-molotok"]
[Black "Meri-Arabidze"]
[Result "0-1"]
[WhiteElo "2558"]
[BlackElo "2715"]
[TimeControl "180+1"]
[EndTime "9:47:30 PDT"]
[Termination "Meri-Arabidze won by resignation"]

1. e4 {[%clk 0:03:00.9]} 1... c5 {[%clk 0:02:57.9]} 2. Nf3 {[%clk 0:03:00.6]}
2... e6 {[%clk 0:02:58.4]} 3. g3 {[%clk 0:03:00.5]} 3... Nc6 {[%clk 0:02:57.8]}
4. Bg2 {[%clk 0:02:59.4]} 4... Nf6 {[%clk 0:02:58.5]} 5. d3 {[%clk 0:02:59.1]}
5... d5 {[%clk 0:02:54.5]} 6. Qe2 {[%clk 0:02:59]} 6... Be7 {[%clk 0:02:53.2]}
7. O-O {[%clk 0:02:54.7]} 7... O-O {[%clk 0:02:53.2]} 8. e5 {[%clk 0:02:53]}
8... Ne8 {[%clk 0:02:53.5]} 9. c4 {[%clk 0:02:53.6]} 9... Nc7 {[%clk 0:02:52.6]}
10. Nc3 {[%clk 0:02:49.6]} 10... b6 {[%clk 0:02:49.6]} 11. Bf4 {[%clk
0:02:44.6]} 11... Bb7 {[%clk 0:02:47.1]} 12. h4 {[%clk 0:02:43.7]} 12... Rb8
{[%clk 0:02:37.3]} 13. h5 {[%clk 0:02:42.7]} 13... Nd4 {[%clk 0:02:31.3]} 14.
Nxd4 {[%clk 0:02:29.1]} 14... cxd4 {[%clk 0:02:32.2]} 15. Nb5 {[%clk 0:02:22.7]}
15... dxc4 {[%clk 0:02:32.6]} 16. Nxa7 {[%clk 0:02:05.9]} 16... Bxg2 {[%clk
0:02:20.7]} 17. Kxg2 {[%clk 0:02:06.8]} 17... Qd5+ {[%clk 0:02:21]} 18. Qf3
{[%clk 0:02:06.1]} 18... cxd3 {[%clk 0:02:08.9]} 19. Nc6 {[%clk 0:02:04.9]}
19... Rbe8 {[%clk 0:02:08.7]} 20. Rfd1 {[%clk 0:01:51.1]} 20... f6 {[%clk
0:01:34.6]} 21. Nxe7+ {[%clk 0:01:38.3]} 21... Rxe7 {[%clk 0:01:34.2]} 22. Rxd3
{[%clk 0:01:33.5]} 22... Qxf3+ {[%clk 0:01:24.4]} 23. Rxf3 {[%clk 0:01:31.3]}
23... Nd5 {[%clk 0:01:17.1]} 24. exf6 {[%clk 0:01:25]} 24... Rxf6 {[%clk
0:01:14.9]} 25. Be5 {[%clk 0:01:21.7]} 25... Rxf3 {[%clk 0:01:12.9]} 26. Kxf3
{[%clk 0:01:22.6]} 26... Rf7+ {[%clk 0:01:07.5]} 27. Ke4 {[%clk 0:01:13.9]}
27... Rxf2 {[%clk 0:01:06.3]} 28. Bxd4 {[%clk 0:01:13.8]} 28... Rh2 {[%clk
0:01:00.5]} 29. Ke5 {[%clk 0:01:07.9]} 29... Kf7 {[%clk 0:00:52.3]} 30. Rf1+
{[%clk 0:01:01.8]} 30... Ke7 {[%clk 0:00:50]} 31. Ke4 {[%clk 0:00:59.4]} 31...
Rxh5 {[%clk 0:00:48.9]} 32. Bxg7 {[%clk 0:00:58.7]} 32... Rh2 {[%clk 0:00:41.4]}
33. Bd4 {[%clk 0:00:53.7]} 33... Re2+ {[%clk 0:00:40.9]} 34. Kd3 {[%clk
0:00:52.6]} 34... Rg2 {[%clk 0:00:40.8]} 35. Rh1 {[%clk 0:00:48.4]} 35... Rxg3+
{[%clk 0:00:40.1]} 36. Kc4 {[%clk 0:00:48.5]} 36... Kd6 {[%clk 0:00:35.1]} 37.
Rxh7 {[%clk 0:00:47.7]} 37... Rg4 {[%clk 0:00:35.4]} 38. Kd3 {[%clk 0:00:43.5]}
38... Nb4+ {[%clk 0:00:35]} 39. Kc4 {[%clk 0:00:24.4]} 39... Nxa2 {[%clk
0:00:35.1]} 40. Rh6 {[%clk 0:00:13.3]} 40... b5+ {[%clk 0:00:29.2]} 41. Kd3
{[%clk 0:00:12.1]} 41... Nb4+ {[%clk 0:00:29.1]} 42. Kc3 {[%clk 0:00:09]} 42...
Nd5+ {[%clk 0:00:29.2]} 43. Kd3 {[%clk 0:00:09.5]} 43... Nf4+ {[%clk 0:00:24.6]}
44. Ke3 {[%clk 0:00:09.1]} 44... Nd5+ {[%clk 0:00:19.5]} 45. Kd3 {[%clk
0:00:09.4]} 45... Rg3+ {[%clk 0:00:19.9]} 46. Kd2 {[%clk 0:00:07.5]} 46... b4
{[%clk 0:00:17.6]} 47. Bh8 {[%clk 0:00:06.1]} 47... b3 {[%clk 0:00:16.1]} 48.
Rh5 {[%clk 0:00:06]} 48... Rg2+ {[%clk 0:00:15.6]} 49. Kd3 {[%clk 0:00:06.2]}
49... Nf4+ {[%clk 0:00:15.2]} 50. Kc4 {[%clk 0:00:06]} 50... Nxh5 {[%clk
0:00:16.1]} 0-1

[Event "Early-Titled-Tuesday-Blitz-May-14-2024"]
[Site "Chess.com"]
[Date "2024.05.14"]
[Round "9"]
[White "manmanlai1"]
[Black "Azalea95"]
[Result "1-0"]
[WhiteElo "2586"]
[BlackElo "2409"]
[TimeControl "180+1"]
[EndTime "9:47:31 PDT"]
[Termination "manmanlai1 won on time"]

1. e4 {[%clk 0:03:00.9]} 1... e6 {[%clk 0:02:57.1]} 2. d4 {[%clk 0:03:00.4]}
2... d5 {[%clk 0:02:55.1]} 3. Nc3 {[%clk 0:03:00.1]} 3... Nf6 {[%clk 0:02:54.1]}
4. e5 {[%clk 0:03:00.3]} 4... Nfd7 {[%clk 0:02:54.1]} 5. Nce2 {[%clk 0:02:57.3]}
5... c5 {[%clk 0:02:54.4]} 6. c3 {[%clk 0:02:57.1]} 6... Nc6 {[%clk 0:02:55.2]}
7. f4 {[%clk 0:02:57.4]} 7... Be7 {[%clk 0:02:54.1]} 8. Nf3 {[%clk 0:02:57.7]}
8... O-O {[%clk 0:02:54.9]} 9. Be3 {[%clk 0:02:54.2]} 9... f6 {[%clk 0:02:54.3]}
10. Qd2 {[%clk 0:02:51.6]} 10... a6 {[%clk 0:02:38.5]} 11. g3 {[%clk 0:02:48.9]}
11... b5 {[%clk 0:02:36.9]} 12. Bh3 {[%clk 0:02:47.8]} 12... f5 {[%clk
0:02:33.4]} 13. O-O {[%clk 0:02:46.7]} 13... b4 {[%clk 0:02:27]} 14. Kh1 {[%clk
0:02:47]} 14... Bb7 {[%clk 0:02:25.4]} 15. g4 {[%clk 0:02:41.9]} 15... g6 {[%clk
0:02:12.5]} 16. Rg1 {[%clk 0:02:41.3]} 16... Nb6 {[%clk 0:02:04.9]} 17. b3
{[%clk 0:02:33]} 17... bxc3 {[%clk 0:02:03.9]} 18. Nxc3 {[%clk 0:02:33.1]} 18...
cxd4 {[%clk 0:02:03.5]} 19. Nxd4 {[%clk 0:02:34]} 19... Nxd4 {[%clk 0:02:02.5]}
20. Bxd4 {[%clk 0:02:34.9]} 20... Rc8 {[%clk 0:01:58.1]} 21. gxf5 {[%clk
0:02:34.7]} 21... exf5 {[%clk 0:01:58.2]} 22. Bg2 {[%clk 0:02:29.6]} 22... Bb4
{[%clk 0:01:50.7]} 23. Qd3 {[%clk 0:02:25.4]} 23... Bxc3 {[%clk 0:01:23.1]} 24.
Bxc3 {[%clk 0:02:26.3]} 24... Qc7 {[%clk 0:01:06.7]} 25. Bd4 {[%clk 0:02:24.1]}
25... Rfd8 {[%clk 0:01:04.2]} 26. e6 {[%clk 0:01:59.3]} 26... Qd6 {[%clk
0:00:55.7]} 27. Qe3 {[%clk 0:01:56.5]} 27... Rc6 {[%clk 0:00:46.3]} 28. Rae1
{[%clk 0:01:51.2]} 28... Re8 {[%clk 0:00:46.4]} 29. e7 {[%clk 0:01:44.1]} 29...
Nc8 {[%clk 0:00:43.2]} 30. Be5 {[%clk 0:01:31.7]} 30... Qd7 {[%clk 0:00:37.5]}
31. Ba1 {[%clk 0:01:23.2]} 31... d4 {[%clk 0:00:25.3]} 32. Qxd4 {[%clk
0:01:10.5]} 32... Qxd4 {[%clk 0:00:23.8]} 33. Bxd4 {[%clk 0:01:11.4]} 33... Rxe7
{[%clk 0:00:22]} 34. b4 {[%clk 0:00:54.7]} 34... Rcc7 {[%clk 0:00:07.3]} 35.
Rxe7 {[%clk 0:00:45.8]} 35... Nxe7 {[%clk 0:00:06.8]} 36. Re1 {[%clk 0:00:39.3]}
36... Bxg2+ {[%clk 0:00:05.6]} 37. Kxg2 {[%clk 0:00:39.3]} 37... Nd5 {[%clk
0:00:06.5]} 38. Be5 {[%clk 0:00:35.3]} 38... Rc2+ {[%clk 0:00:05.5]} 39. Kg1
{[%clk 0:00:35.9]} 39... Nxb4 {[%clk 0:00:04.5]} 40. Rb1 {[%clk 0:00:35.1]}
40... Nd3 {[%clk 0:00:04]} 41. Rb8+ {[%clk 0:00:34.3]} 41... Kf7 {[%clk
0:00:04.8]} 42. Rb7+ {[%clk 0:00:34.9]} 42... Ke6 {[%clk 0:00:05.3]} 43. Bb8
{[%clk 0:00:34.8]} 43... Rb2 {[%clk 0:00:03.7]} 44. Rxb2 {[%clk 0:00:29.7]}
44... Nxb2 {[%clk 0:00:04.6]} 45. Kf2 {[%clk 0:00:30.3]} 45... Kd5 {[%clk
0:00:03.5]} 46. Kg3 {[%clk 0:00:30.5]} 46... Ke4 {[%clk 0:00:03.4]} 47. Kh4
{[%clk 0:00:30.1]} 47... h6 {[%clk 0:00:01.9]} 48. Kg3 {[%clk 0:00:27.7]} 48...
Nd3 {[%clk 0:00:02.5]} 49. Bd6 {[%clk 0:00:27.3]} 49... a5 {[%clk 0:00:02.6]}
50. Bf8 {[%clk 0:00:26.2]} 1-0